fUST/lending_fUST_20240705
["ID","MTS","AMOUNT","RATE_DAILY","PERIOD"]
[331159908,1720111840329,-500.0,0.00013698,2]
[331159909,1720111840339,-1044.22,0.00013698,2]
[331159910,1720111840348,-500.0,0.00013698,2]
[331159911,1720111840359,-1077.61,0.00013698,2]
[331159912,1720111840368,-500.0,0.00013698,2]
[331159913,1720111840377,-604.27,0.00013698,2]
[331159914,1720111840387,-501.36425761,0.00013698,2]
[331159915,1720111840397,-604.27,0.00013698,2]
[331159916,1720111840407,-604.27,0.00013698,2]
[331159917,1720111840417,-604.27,0.00013698,2]
[331159918,1720111840426,-604.27,0.00013698,2]
[331159919,1720111840436,-604.27,0.00013698,2]
[331159920,1720111840446,-500.0,0.00013698,2]
[331159921,1720111840455,-604.27,0.00013698,2]
[331159922,1720111840466,-604.27,0.00013698,2]
[331159923,1720111840476,-500.0,0.00013698,2]
[331159924,1720111840485,-500.0,0.00013698,2]
[331159925,1720111840495,-500.0,0.00013698,2]
[331159926,1720111840505,-500.0,0.00013698,2]
[331159927,1720111840515,-500.0,0.00013698,2]
[331159928,1720111840524,-500.0,0.00013698,2]
[331159929,1720111840534,-500.0,0.00013698,2]
[331159930,1720111840543,-500.0,0.00013698,2]
[331159931,1720111840553,-500.0,0.00013698,2]
[331159932,1720111840562,-500.0,0.00013698,2]
[331159933,1720111840571,-500.0,0.00013698,2]
[331159934,1720111840581,-500.0,0.00013698,2]
[331159935,1720111840590,-500.0,0.00013698,2]
[331159936,1720111840600,-500.0,0.00013698,2]
[331159937,1720111840610,-500.0,0.00013698,2]
[331159938,1720111840620,-500.0,0.00013698,2]
[331159939,1720111840629,-500.0,0.00013698,2]
[331159940,1720111840638,-500.0,0.00013698,2]
[331159941,1720111840648,-500.0,0.00013698,2]
[331159942,1720111840657,-500.0,0.00013698,2]
[331159943,1720111840667,-500.0,0.00013698,2]
[331159944,1720111840676,-500.0,0.00013698,2]
[331159945,1720111840685,-500.0,0.00013698,2]
[331159946,1720111840695,-512.9634814,0.00013698,2]
[331159947,1720111840704,-500.0,0.00013698,2]
[331159948,1720111840714,-517.5155167,0.00013698,2]
[331159949,1720111840724,-500.0,0.00013698,2]
[331159950,1720111840736,-500.0,0.00013698,2]
[331159951,1720111840746,-500.0,0.00013698,2]
[331159952,1720111840761,-500.0,0.00013698,2]
[331159953,1720111840771,-500.0,0.00013698,2]
[331159954,1720111840781,-500.0,0.00013698,2]
[331159955,1720111840790,-500.0,0.00013698,2]
[331159956,1720111840802,-553.31,0.00013698,2]
[331159957,1720111840812,-500.0,0.00013698,2]
[331159958,1720111840822,-500.0,0.00013698,2]
[331159959,1720111840831,-500.0,0.00013698,2]
[331159960,1720111840844,-500.0,0.00013698,2]
[331159961,1720111840853,-500.0,0.00013698,2]
[331159962,1720111840863,-501.43587116,0.00013698,2]
[331159963,1720111840872,-500.0,0.00013698,2]
[331159964,1720111840882,-500.0,0.00013698,2]
[331159965,1720111840891,-500.0,0.00013698,2]
[331159966,1720111840902,-500.0,0.00013698,2]
[331159967,1720111840911,-500.0,0.00013698,2]
[331159968,1720111840921,-500.0,0.00013698,2]
[331159969,1720111840932,-500.0,0.00013698,2]
[331159970,1720111840942,-532.5543861,0.00013698,2]
[331159971,1720111840952,-500.0,0.00013698,2]
[331159972,1720111840962,-500.0,0.00013698,2]
[331159973,1720111840971,-505.20988298,0.00013698,2]
[331159974,1720111840982,-500.0,0.00013698,2]
[331159975,1720111840992,-500.0,0.00013698,2]
[331159976,1720111841004,-500.0,0.00013698,2]
[331159977,1720111841013,-1530.62,0.00013698,2]
[331159978,1720111841023,-500.0,0.00013698,2]
[331159979,1720111841033,-508.69503204,0.00013698,2]
[331159980,1720111841043,-500.0,0.00013698,2]
[331159981,1720111841052,-500.0,0.00013698,2]
[331159982,1720111841062,-547.01,0.00013698,2]
[331159983,1720111841072,-514.59758607,0.00013698,2]
[331159984,1720111841081,-500.0,0.00013698,2]
[331159985,1720111841091,-516.17711193,0.00013698,2]
[331159986,1720111841100,-500.0,0.00013698,2]
[331159987,1720111841110,-1040.2,0.00013698,2]
[331159988,1720111841119,-500.0,0.00013698,2]
[331159989,1720111841130,-505.97644375,0.00013698,2]
[331159990,1720111841139,-500.0,0.00013698,2]
[331159991,1720111841149,-168.12840287,0.00013698,2]
[331159992,1720111841158,-500.0,0.00013698,2]
[331159993,1720111841168,-12654.94,0.00013698,2]
[331159994,1720111841178,-1693.98,0.00013698,2]
[331159995,1720111841188,-1128.2,0.00013698,2]
[331159996,1720111841198,-500.70268075,0.00013698,2]
[331159997,1720111841207,-1107.55,0.00013698,2]
[331159998,1720111841217,-500.0,0.00013698,2]
[331159999,1720111841226,-500.0,0.00013698,2]
[331160000,1720111841237,-500.0,0.00013698,2]
[331160001,1720111841246,-500.0,0.00013698,2]
[331160002,1720111841255,-500.0,0.00013698,2]
[331160003,1720111841265,-500.0,0.00013698,2]
[331160004,1720111841275,-500.0,0.00013698,2]
[331160005,1720111841285,-500.0,0.00013698,2]
[331160006,1720111841294,-820.84,0.00013698,2]
[331160007,1720111841304,-500.0,0.00013698,2]
[331160008,1720111841315,-500.0,0.00013698,2]
[331160009,1720111841324,-730.93,0.00013698,2]
[331160010,1720111841334,-529.09069393,0.00013698,2]
[331160011,1720111841344,-500.0,0.00013698,2]
[331160012,1720111841353,-500.0,0.00013698,2]
[331160013,1720111841364,-500.0,0.00013698,2]
[331160014,1720111841373,-500.0,0.00013698,2]
[331160015,1720111841383,-500.0,0.00013698,2]
[331160016,1720111841392,-500.0,0.00013698,2]
[331160017,1720111841402,-500.0,0.00013698,2]
[331160018,1720111841412,-551.19,0.00013698,2]
[331160019,1720111841422,-500.58124988,0.00013698,2]
[331160020,1720111841432,-514.55998148,0.00013698,2]
[331160021,1720111841442,-500.0,0.00013698,2]
[331160022,1720111841452,-1712.0,0.00013698,2]
[331160023,1720111841462,-500.0,0.00013698,2]
[331160024,1720111841472,-737.52,0.00013698,2]
[331160025,1720111841486,-500.0,0.00013698,2]
[331160026,1720111841496,-500.0,0.00013698,2]
[331160027,1720111841506,-500.0,0.00013698,2]
[331160028,1720111841516,-3301.17,0.00013698,2]
[331160029,1720111841525,-500.0,0.00013698,2]
[331160030,1720111841535,-509.19799053,0.00013698,2]
[331160031,1720111841544,-909.9,0.00013698,2]
[331160032,1720111841554,-510.18025015,0.00013698,2]
[331160033,1720111841564,-500.0,0.00013698,2]
[331160034,1720111841574,-500.0,0.00013698,2]
[331160035,1720111841584,-500.0,0.00013698,2]
[331160036,1720111841593,-500.0,0.00013698,2]
[331160037,1720111841603,-500.42170953,0.00013698,2]
[331160038,1720111841613,-500.0,0.00013698,2]
[331160039,1720111841622,-500.0,0.00013698,2]
[331160040,1720111841632,-790.85,0.00013698,2]
[331160041,1720111841642,-500.0,0.00013698,2]
[331160042,1720111841652,-4226.55,0.00013698,2]
[331160043,1720111841661,-577.8491973,0.00013698,2]
[331160044,1720111841671,-410.67064769,0.00013698,2]
[331160045,1720111841681,-500.0,0.00013698,2]
[331160046,1720111841690,-500.0,0.00013698,2]
[331160047,1720111841701,-1373.4,0.00013698,2]
[331160048,1720111841711,-500.0,0.00013698,2]
[331160049,1720111841721,-500.0,0.00013698,2]
[331160050,1720111841731,-500.0,0.00013698,2]
[331160051,1720111841741,-500.0,0.00013698,2]
[331160052,1720111841751,-2265.01,0.00013698,2]
[331160053,1720111841763,-500.0,0.00013698,2]
[331160054,1720111841775,-500.0,0.00013698,2]
[331160055,1720111841784,-500.0,0.00013698,2]
[331160056,1720111841794,-500.0,0.00013698,2]
[331160057,1720111841803,-610.89,0.00013698,2]
[331160058,1720111841813,-500.0,0.00013698,2]
[331160061,1720111841930,-500.0,0.00013698,2]
[331160062,1720111841941,-500.0,0.00013698,2]
[331160063,1720111841951,-495.62845761,0.00013698,2]
[331160064,1720111841961,-502.68691975,0.00013698,2]
[331160065,1720111841970,-500.0,0.00013698,2]
[331160066,1720111841979,-289.79248135,0.00013698,2]
[331160067,1720111841989,-500.0,0.00013698,2]
[331160068,1720111842000,-500.0,0.00013698,2]
[331160069,1720111842010,-500.0,0.00013698,2]
[331160070,1720111842019,-500.0,0.00013698,2]
[331160071,1720111842029,-6918.33,0.00013698,2]
[331160072,1720111842039,-500.0,0.00013698,2]
[331160073,1720111842050,-6918.33,0.00013698,2]
[331160074,1720111842062,-6918.33,0.00013698,2]
[331160075,1720111842071,-6918.33,0.00013698,2]
[331160076,1720111842081,-6918.33,0.00013698,2]
[331160077,1720111842091,-6918.33,0.00013698,2]
[331160078,1720111842101,-6918.33,0.00013698,2]
[331160079,1720111842111,-500.0,0.00013698,2]
[331160080,1720111842121,-1703.24,0.00013698,2]
[331160081,1720111842130,-6918.33,0.00013698,2]
[331160082,1720111842141,-500.0,0.00013698,2]
[331160083,1720111842150,-500.0,0.00013698,2]
[331160084,1720111842160,-1501.58,0.00013698,2]
[331160085,1720111842169,-500.0,0.00013698,2]
[331160086,1720111842179,-500.0,0.00013698,2]
[331160087,1720111842188,-500.0,0.00013698,2]
[331160089,1720111842197,-500.0,0.00013698,2]
[331160091,1720111842207,-502.14946714,0.00013698,2]
[331160093,1720111842216,-500.0,0.00013698,2]
[331160095,1720111842225,-500.0,0.00013698,2]
[331160097,1720111842236,-512.67373948,0.00013698,2]
[331160099,1720111842245,-503.32783677,0.00013698,2]
[331160101,1720111842255,-506.2390156,0.00013698,2]
[331160103,1720111842264,-577.32163834,0.00013698,2]
[331160105,1720111842274,-7558.61,0.00013698,2]
[331160107,1720111842284,-500.0,0.00013698,2]
[331160109,1720111842294,-500.0,0.00013698,2]
[331160111,1720111842304,-500.0,0.00013698,2]
[331160113,1720111842314,-500.0,0.00013698,2]
[331160115,1720111842324,-500.0,0.00013698,2]
[331160118,1720111842334,-502.57306464,0.00013698,2]
[331160119,1720111842343,-508.48056534,0.00013698,2]
[331160121,1720111842353,-501.65784496,0.00013698,2]
[331160122,1720111842363,-628.13,0.00013698,2]
[331160123,1720111842372,-505.63445347,0.00013698,2]
[331160124,1720111842382,-500.0,0.00013698,2]
[331160125,1720111842391,-504.5498617,0.00013698,2]
[331160126,1720111842401,-1442.91,0.00013698,2]
[331160127,1720111842411,-394.077144,0.00013698,2]
[331160128,1720111842421,-639.30577765,0.00013698,2]
[331160129,1720111842431,-502.55234064,0.00013698,2]
[331160130,1720111842440,-500.0,0.00013698,2]
[331160131,1720111842449,-500.0,0.00013698,2]
[331160132,1720111842459,-580.16,0.00013698,2]
[331160133,1720111842468,-500.0,0.00013698,2]
[331160134,1720111842478,-1175.56,0.00013698,2]
[331160135,1720111842490,-500.0,0.00013698,2]
[331160136,1720111842501,-500.0,0.00013698,2]
[331160137,1720111842511,-508.73362254,0.00013698,2]
[331160138,1720111842520,-500.0,0.00013698,2]
[331160139,1720111842530,-904.07,0.00013698,2]
[331160140,1720111842540,-500.0,0.00013698,2]
[331160141,1720111842549,-500.0,0.00013698,2]
[331160142,1720111842558,-502.78767565,0.00013698,2]
[331160143,1720111842567,-500.0,0.00013698,2]
[331160144,1720111842577,-500.0,0.00013698,2]
[331160146,1720111842586,-4335.35,0.00013698,2]
[331160148,1720111842595,-500.0,0.00013698,2]
[331160150,1720111842604,-500.0,0.00013698,2]
[331160152,1720111842614,-500.0,0.00013698,2]
[331160154,1720111842623,-500.0,0.00013698,2]
[331160155,1720111842632,-503.71554017,0.00013698,2]
[331160157,1720111842642,-500.0,0.00013698,2]
[331160159,1720111842652,-500.0,0.00013698,2]
[331160161,1720111842661,-500.0,0.00013698,2]
[331160163,1720111842670,-500.0,0.00013698,2]
[331160165,1720111842680,-500.0,0.00013698,2]
[331160167,1720111842689,-500.0,0.00013698,2]
[331160168,1720111842699,-500.0,0.00013698,2]
[331160169,1720111842709,-500.0,0.00013698,2]
[331160170,1720111842719,-534.88,0.00013698,2]
[331160171,1720111842729,-500.0,0.00013698,2]
[331160172,1720111842743,-500.0,0.00013698,2]
[331160173,1720111842759,-500.0,0.00013698,2]
[331160174,1720111842773,-500.0,0.00013698,2]
[331160175,1720111842784,-500.0,0.00013698,2]
[331160176,1720111842796,-500.0,0.00013698,2]
[331160177,1720111842807,-500.0,0.00013698,2]
[331160178,1720111842818,-27744.77,0.00013698,2]
[331160179,1720111842829,-500.0,0.00013698,2]
[331160180,1720111842842,-500.0,0.00013698,2]
[331160181,1720111842853,-500.0,0.00013698,2]
[331160182,1720111842863,-500.0,0.00013698,2]
[331160183,1720111842875,-500.0,0.00013698,2]
[331160184,1720111842887,-500.0,0.00013698,2]
[331160185,1720111842899,-500.0,0.00013698,2]
[331160186,1720111842911,-284.42713309,0.00013698,2]
[331160187,1720111842921,-553.82,0.00013698,2]
[331160188,1720111842932,-509.77482491,0.00013698,2]
[331160189,1720111842942,-420.006378,0.00013698,2]
[331160190,1720111842952,-502.69421746,0.00013698,2]
[331160191,1720111842962,-500.0,0.00013698,2]
[331160192,1720111842971,-500.0,0.00013698,2]
[331160193,1720111842979,-500.0,0.00013698,2]
[331160194,1720111842995,-500.0,0.00013698,2]
[331160195,1720111843004,-2916.21,0.00013698,2]
[331160196,1720111843015,-500.0,0.00013698,2]
[331160197,1720111843024,-500.0,0.00013698,2]
[331160198,1720111843035,-501.86511559,0.00013698,2]
[331160199,1720111843045,-1759.87,0.00013698,2]
[331160200,1720111843054,-500.0,0.00013698,2]
[331160201,1720111843064,-500.0,0.00013698,2]
[331160202,1720111843074,-519.38651261,0.00013698,2]
[331160203,1720111843084,-505.27918505,0.00013698,2]
[331160204,1720111843093,-500.0,0.00013698,2]
[331160205,1720111843103,-1048.66,0.00013698,2]
[331160206,1720111843113,-500.0,0.00013698,2]
[331160207,1720111843123,-500.0,0.00013698,2]
[331160208,1720111843133,-500.0,0.00013698,2]
[331160209,1720111843143,-4910.82,0.00013698,2]
[331160210,1720111843152,-503.04132229,0.00013698,2]
[331160211,1720111843162,-7531.94,0.00013698,2]
[331160212,1720111843171,-500.0,0.00013698,2]
[331160213,1720111843181,-500.0,0.00013698,2]
[331160214,1720111843191,-1929.35,0.00013698,2]
[331160215,1720111843200,-500.0,0.00013698,2]
[331160216,1720111843210,-502.22919778,0.00013698,2]
[331160217,1720111843219,-500.0,0.00013698,2]
[331160218,1720111843229,-505.24803205,0.00013698,2]
[331160219,1720111843243,-500.0,0.00013698,2]
[331160220,1720111843253,-501.07220932,0.00013698,2]
[331160221,1720111843262,-500.0,0.00013698,2]
[331160222,1720111843272,-500.0,0.00013698,2]
[331160223,1720111843282,-8786.94,0.00013698,2]
[331160224,1720111843291,-501.81622431,0.00013698,2]
[331160225,1720111843301,-503.93885515,0.00013698,2]
[331160226,1720111843310,-500.0,0.00013698,2]
[331160227,1720111843320,-7776.49,0.00013698,2]
[331160228,1720111843329,-500.0,0.00013698,2]
[331160229,1720111843339,-500.0,0.00013698,2]
[331160230,1720111843348,-500.0,0.00013698,2]
[331160231,1720111843358,-502.72455984,0.00013698,2]
[331160232,1720111843367,-500.0,0.00013698,2]
[331160233,1720111843376,-3000.0,0.00013699,2]
[331160234,1720111843386,-668.663192,0.00013699,2]
[331160235,1720111843395,-604.27,0.00013961,2]
[331160236,1720111843405,-500.0,0.00013961,2]
[331160237,1720111843414,-500.0,0.00013961,2]
[331160238,1720111843423,-6918.33,0.00013961,2]
[331160239,1720111843433,-604.27,0.00013971,2]
[331160240,1720111843442,-604.27,0.00013971,2]
[331160241,1720111843452,-604.27,0.00013971,2]
[331160242,1720111843461,-604.27,0.00013971,2]
[331160243,1720111843470,-500.0,0.00013971,2]
[331160244,1720111843479,-500.0,0.00013971,2]
[331160245,1720111843491,-500.0,0.00013971,2]
[331160246,1720111843501,-310.60040158,0.00013971,2]
[331160247,1720111843510,-6918.33,0.00013971,2]
[331160248,1720111843519,-6918.33,0.00013971,2]
[331160249,1720111843528,-6918.33,0.00013971,2]
[331160250,1720111843538,-6918.33,0.00013971,2]
[331160251,1720111843547,-1206.24,0.00013972,2]
[331160252,1720111843556,-962.97,0.00013972,2]
[331160253,1720111843566,-500.0,0.00013972,2]
[331160254,1720111843575,-500.0,0.00013972,2]
[331160255,1720111843584,-500.0,0.00013972,2]
[331160256,1720111843593,-846.17,0.00013972,2]
[331160257,1720111843602,-500.0,0.00013972,2]
[331160258,1720111843611,-722.55,0.00013972,2]
[331160259,1720111843620,-252.70517784,0.00013972,2]
[331160260,1720111843629,-1088.19,0.00013972,2]
[331160261,1720111843639,-500.0,0.00013972,2]
[331160262,1720111843648,-500.0,0.00013972,2]
[331160263,1720111843657,-500.0,0.00013972,2]
[331160264,1720111843667,-500.0,0.00013972,2]
[331160265,1720111843676,-500.0,0.00013972,2]
[331160266,1720111843685,-545.02306813,0.00013972,2]
[331160267,1720111843694,-500.0,0.00013972,2]
[331160268,1720111843703,-500.0,0.00013972,2]
[331160269,1720111843712,-500.0,0.00013972,2]
[331160270,1720111843721,-563.20368314,0.00013972,2]
[331160271,1720111843731,-500.0,0.00013972,2]
[331160272,1720111843827,-504.41982607,0.00013972,2]
[331160273,1720111843836,-8296.52,0.00013972,2]
[331160274,1720111843847,-500.0,0.00013972,2]
[331160275,1720111843857,-184.24069671,0.00013972,2]
[331160276,1720111843866,-500.0,0.00013972,2]
[331160277,1720111843875,-500.0,0.00013972,2]
[331160278,1720111843884,-500.0,0.00013972,2]
[331160279,1720111843893,-608.08136095,0.00013972,2]
[331160280,1720111843902,-500.0,0.00013972,2]
[331160281,1720111843912,-500.0,0.00013972,2]
[331160282,1720111843920,-526.7275412,0.00013972,2]
[331160283,1720111843929,-3764.85,0.00013972,2]
[331160284,1720111843939,-500.0,0.00013972,2]
[331160285,1720111843949,-500.0,0.00013972,2]
[331160286,1720111843958,-500.0,0.00013972,2]
[331160287,1720111843967,-500.0,0.00013972,2]
[331160288,1720111843977,-500.0,0.00013972,2]
[331160289,1720111843986,-500.0,0.00013972,2]
[331160290,1720111843997,-500.0,0.00013972,2]
[331160291,1720111844006,-500.0,0.00013972,2]
[331160292,1720111844016,-500.0,0.00013972,2]
[331160293,1720111844025,-500.0,0.00013972,2]
[331160294,1720111844035,-544.12841864,0.00013972,2]
[331160295,1720111844044,-500.0,0.00013972,2]
[331160296,1720111844054,-500.0,0.00013972,2]
[331160297,1720111844063,-500.0,0.00013972,2]
[331160298,1720111844073,-691.65,0.00013972,2]
[331160299,1720111844083,-500.0,0.00013972,2]
[331160300,1720111844093,-500.0,0.00013972,2]
[331160301,1720111844103,-500.0,0.00013972,2]
[331160302,1720111844112,-500.0,0.00013972,2]
[331160303,1720111844122,-500.0,0.00013972,2]
[331160304,1720111844131,-500.0,0.00013972,2]
[331160305,1720111844141,-500.0,0.00013972,2]
[331160306,1720111844150,-502.12164599,0.00013972,2]
[331160307,1720111844160,-500.0,0.00013972,2]
[331160308,1720111844169,-500.0,0.00013972,2]
[331160309,1720111844179,-500.0,0.00013972,2]
[331160310,1720111844188,-500.0,0.00013972,2]
[331160311,1720111844198,-500.0,0.00013972,2]
[331160312,1720111844208,-500.0,0.00013972,2]
[331160313,1720111844218,-500.0,0.00013972,2]
[331160314,1720111844227,-599.7,0.00013972,2]
[331160315,1720111844238,-1611.17,0.00013972,2]
[331160316,1720111844248,-500.0,0.00013972,2]
[331160317,1720111844257,-500.0,0.00013972,2]
[331160318,1720111844267,-500.0,0.00013972,2]
[331160319,1720111844276,-500.0,0.00013972,2]
[331160320,1720111844285,-500.0,0.00013972,2]
[331160321,1720111844295,-541.95,0.00013972,2]
[331160322,1720111844304,-500.0,0.00013972,2]
[331160323,1720111844313,-500.0,0.00013972,2]
[331160324,1720111844322,-500.0,0.00013972,2]
[331160325,1720111844331,-535.62143049,0.00013972,2]
[331160326,1720111844340,-500.0,0.00013972,2]
[331160327,1720111844350,-500.0,0.00013972,2]
[331160328,1720111844360,-500.0,0.00013972,2]
[331160329,1720111844369,-500.0,0.00013972,2]
[331160330,1720111844378,-210.30514185,0.00013972,2]
[331160331,1720111844387,-500.0,0.00013972,2]
[331160332,1720111844396,-500.0,0.00013972,2]
[331160333,1720111844406,-2198.82,0.00013972,2]
[331160334,1720111844415,-500.0,0.00013972,2]
[331160335,1720111844424,-500.0,0.00013972,2]
[331160336,1720111844433,-500.0,0.00013972,2]
[331160337,1720111844442,-500.0,0.00013972,2]
[331160338,1720111844452,-500.0,0.00013972,2]
[331160339,1720111844460,-1018.96,0.00013972,2]
[331160340,1720111844470,-500.0,0.00013972,2]
[331160341,1720111844479,-500.0,0.00013972,2]
[331160342,1720111844489,-500.0,0.00013972,2]
[331160343,1720111844499,-500.0,0.00013972,2]
[331160344,1720111844508,-500.0,0.00013972,2]
[331160345,1720111844517,-504.17369231,0.00013972,2]
[331160346,1720111844526,-781.13,0.00013972,2]
[331160347,1720111844536,-500.0,0.00013972,2]
[331160348,1720111844545,-1122.93,0.00013972,2]
[331160349,1720111844554,-500.0,0.00013972,2]
[331160350,1720111844563,-500.0,0.00013972,2]
[331160351,1720111844572,-500.0,0.00013972,2]
[331160352,1720111844581,-500.0,0.00013972,2]
[331160353,1720111844590,-500.0,0.00013972,2]
[331160354,1720111844599,-500.0,0.00013972,2]
[331160355,1720111844608,-500.0,0.00013972,2]
[331160356,1720111844617,-500.0,0.00013972,2]
[331160357,1720111844626,-500.0,0.00013972,2]
[331160358,1720111844636,-500.0,0.00013972,2]
[331160359,1720111844645,-500.0,0.00013972,2]
[331160360,1720111844654,-1564.47,0.00013972,2]
[331160361,1720111844663,-318.69208428,0.00013972,2]
[331160362,1720111844673,-564.15963743,0.00013972,2]
[331160363,1720111844683,-500.0,0.00013972,2]
[331160364,1720111844693,-500.0,0.00013972,2]
[331160365,1720111844702,-2030.75,0.00013972,2]
[331160366,1720111844711,-500.0,0.00013972,2]
[331160367,1720111844720,-500.0,0.00013972,2]
[331160368,1720111844731,-500.0,0.00013972,2]
[331160369,1720111844741,-500.0,0.00013972,2]
[331160370,1720111844751,-500.0,0.00013972,2]
[331160371,1720111844764,-500.0,0.00013972,2]
[331160372,1720111844774,-500.0,0.00013972,2]
[331160373,1720111844783,-500.0,0.00013972,2]
[331160374,1720111844793,-500.0,0.00013972,2]
[331160375,1720111844802,-500.0,0.00013972,2]
[331160376,1720111844811,-500.0,0.00013972,2]
[331160377,1720111844820,-500.0,0.00013972,2]
[331160378,1720111844830,-500.0,0.00013972,2]
[331160379,1720111844842,-12363.61,0.00013972,2]
[331160380,1720111844851,-500.0,0.00013972,2]
[331160381,1720111844860,-500.0,0.00013972,2]
[331160383,1720111844869,-500.0,0.00013972,2]
[331160385,1720111844878,-500.0,0.00013972,2]
[331160387,1720111844888,-500.0,0.00013972,2]
[331160389,1720111844897,-500.0,0.00013972,2]
[331160391,1720111844906,-587.0,0.00013972,2]
[331160393,1720111844916,-1157.56,0.00013972,2]
[331160396,1720111844925,-1042.28,0.00013972,2]
[331160398,1720111844935,-500.0,0.00013972,2]
[331160400,1720111844944,-742.0,0.00013972,2]
[331160402,1720111844955,-500.0,0.00013972,2]
[331160404,1720111844965,-625.22,0.00013972,2]
[331160406,1720111844976,-500.0,0.00013972,2]
[331160408,1720111844986,-500.0,0.00013972,2]
[331160410,1720111844996,-1044.22,0.00013972,2]
[331160412,1720111845008,-500.0,0.00013972,2]
[331160414,1720111845017,-1077.61,0.00013972,2]
[331160416,1720111845026,-500.0,0.00013972,2]
[331160418,1720111845035,-500.0,0.00013972,2]
[331160420,1720111845045,-283.07585689,0.00013972,2]
[331160422,1720111845054,-500.0,0.00013972,2]
[331160423,1720111845063,-500.0,0.00013972,2]
[331160424,1720111845072,-500.0,0.00013972,2]
[331160425,1720111845081,-500.0,0.00013972,2]
[331160426,1720111845090,-500.0,0.00013972,2]
[331160427,1720111845099,-500.0,0.00013972,2]
[331160428,1720111845108,-500.0,0.00013972,2]
[331160429,1720111845118,-500.0,0.00013972,2]
[331160430,1720111845127,-500.0,0.00013972,2]
[331160431,1720111845136,-500.0,0.00013972,2]
[331160432,1720111845145,-502.15316568,0.00013972,2]
[331160433,1720111845154,-500.0,0.00013972,2]
[331160434,1720111845163,-500.0,0.00013972,2]
[331160435,1720111845172,-500.0,0.00013972,2]
[331160436,1720111845184,-500.0,0.00013972,2]
[331160437,1720111845193,-500.0,0.00013972,2]
[331160438,1720111845202,-500.0,0.00013972,2]
[331160439,1720111845212,-379.41810505,0.00013972,2]
[331160440,1720111845222,-500.0,0.00013972,2]
[331160441,1720111845231,-575.74793625,0.00013972,2]
[331160442,1720111845241,-500.0,0.00013972,2]
[331160443,1720111845251,-500.0,0.00013972,2]
[331160444,1720111845261,-500.0,0.00013972,2]
[331160445,1720111845270,-500.0,0.00013972,2]
[331160446,1720111845280,-500.0,0.00013972,2]
[331160447,1720111845290,-500.0,0.00013972,2]
[331160448,1720111845300,-500.0,0.00013972,2]
[331160449,1720111845312,-500.0,0.00013972,2]
[331160450,1720111845322,-1530.62,0.00013972,2]
[331160451,1720111845331,-500.0,0.00013972,2]
[331160452,1720111845340,-500.0,0.00013972,2]
[331160453,1720111845349,-547.01,0.00013972,2]
[331160454,1720111845358,-500.0,0.00013972,2]
[331160455,1720111845367,-500.0,0.00013972,2]
[331160456,1720111845376,-1040.2,0.00013972,2]
[331160457,1720111845385,-500.0,0.00013972,2]
[331160458,1720111845394,-500.0,0.00013972,2]